Cogmind - Beta 17 @@@ ROGUE MODE // 2026.08.12 @ 01:10:00 Player: Ev Result: Destroyed by 5D-VI1(h) with Hypervelocity Coil Gun Performance ------------- Evolutions (0) 0 Regions Visited (3) 600 Robots Destroyed (30) 150 Value Destroyed (687) 687 Prototype IDs (1) 20 Alien Tech Used (0) 0 Bonus (6280) 6280 TOTAL SCORE: 7737 Bonus ------- Follower Combat Kills 30 Prayed to X0-1V1 5000 Major X0-1V1 Interference 950 Registered with UFD 300 Cogmind --------- Core Integrity 0/350 Matter 300/300 Energy 95/100 System Corruption 0% Temperature Cool (0) Movement Rolling (210) Ox10 Location -9/Scraptown Parts ------- > --- POWER (1) -------- (None) > --- PROPULSION (2) --- Subdweller Monowheel > --- UTILITY (2) ------ Humpback > --- WEAPON (2) ------- Falx > --- INVENTORY (36) --- Protomatter-11 Reinforced Ion Engine Subdweller Power Source Compact Wheel Scrap Suit Scrap Suit Power Amplifier Improved Cooling System Humpback Trap Scanner Machine Analyzer Subdweller Optics Signal Interpreter Advanced Terrain Scanner Terrain Scan Processor Improved Salvage Targeting Computer Particle Charger Actuator Array Advanced ECM Suite Reaction Control System Improved Reaction Control System Layered Medium Armor Plating Insulated Plating EM Shield System Guard Recalibrator Scrapoid Pod X0-1V1's Piety Tracker High-powered Shock Rifle Subdweller Machine Gun CPS Tube (2) CPS Tube (2) Peak State ------------ > --- POWER ------------ Nuclear Core > --- PROPULSION ------- Armored Wheel Subdweller Monowheel > --- UTILITY ---------- Humpback > --- WEAPON ----------- Phase Cannon Falx > --- INVENTORY -------- Protomatter Reinforced Ion Engine Subdweller Power Source Compact Wheel Scrap Suit Scrap Suit Power Amplifier Improved Cooling System Humpback Trap Scanner Machine Analyzer Subdweller Optics Signal Interpreter Advanced Terrain Scanner Terrain Scan Processor Improved Salvage Targeting Computer Particle Charger Actuator Array Advanced ECM Suite Reaction Control System Improved Reaction Control System Layered Medium Armor Plating Insulated Plating EM Shield System Guard Recalibrator Scrapoid Pod X0-1V1's Piety Tracker High-powered Shock Rifle Subdweller Machine Gun CPS Tube CPS Tube [Rating: 32] Favorites ----------- Power Improved Ion Engine Engine Improved Ion Engine Power Core Nuclear Core Propulsion Subdweller Monowheel Treads Spiked Treads Wheel Subdweller Monowheel Utility Humpback Device X0-1V1's Piety Tracker Storage Humpback Weapon Subdweller Machine Gun Energy Gun Arc Projector Energy Cannon Particle Cannon Ballistic Gun Subdweller Machine Gun Ballistic Cannon Battle Cannon Launcher Grenade Launcher Special Weapon Welding Torch Slashing Weapon Falx Build | -11 -10 -10 -9 ------- Run | Yrd Mat Sub Scr Slots Evolved . | . . . . Power . | . . . . Propulsion . | . . . . Utility . | . . . . Weapon . | . . . . Parts Attached 43 | 8 12 15 8 Power 5 | 1 2 . 2 Engine 4 | 1 2 . 1 Core 1 | . . . 1 Reactor . | . . . . Propulsion 13 | 2 2 7 2 Treads 2 | . . 2 . Leg . | . . . . Wheel 11 | 2 2 5 2 Hover . | . . . . Flight . | . . . . Utility 7 | 3 3 1 . Device 3 | 1 2 . . Storage 4 | 2 1 1 . Processor . | . . . . Hackware . | . . . . Protection . | . . . . Artifact . | . . . . Weapon 18 | 2 5 7 4 Energy Gun 5 | 2 1 1 1 Energy Cannon 4 | . 2 1 1 Ballistic Gun 4 | . 1 3 . Ballistic Cannon 1 | . . 1 . Launcher 1 | . . 1 . Special Weapon 2 | . 1 . 1 Impact Weapon . | . . . . Slashing Weapon 1 | . . . 1 Piercing Weapon . | . . . . Special Melee Weapon . | . . . . Unidentified Prototypes 1 | . 1 . . Parts Lost 7 | . 1 3 3 Power 1 | . . . 1 Propulsion 2 | . . 1 1 Utility 2 | . 1 1 . Weapon 2 | . . 1 1 Highest Loss Streak 3 | . 1 1 3 To Critical Strikes 1 | . . . 1 Average Backups 27 | 5 13 24 34 Power 3 | . 1 4 3 Propulsion 2 | 2 1 3 1 Utility 14 | 1 7 9 20 Weapon 5 | 1 3 7 5 Tool/Special . | . . . . Unused Backups 73 | 3 6 4 60 Power 8 | 1 1 1 5 Propulsion 5 | 2 . 1 2 Utility 41 | . 5 2 34 Weapon 14 | . . . 14 Tool/Special 5 | . . . 5 Average Slot Usage (%) 87 | . 98 87 84 Engine 12 | . 14 14 11 Core 1 | . . . 2 Wheel 27 | . 28 27 27 Device 2 | . 13 3 . Storage 14 | . 14 14 14 Energy Gun 7 | . 19 1 8 Energy Cannon 2 | . 7 1 1 Ballistic Gun 7 | . . 10 7 Ballistic Cannon 3 | . . 9 . Special Weapon 5 | . . 2 8 Slashing Weapon 1 | . . . 2 Peak Build Rating 32 | 9 24 25 32 Average Rating 20 | 7 16 18 24 On Entrance 12 | . 9 23 19 Avg Prop Armor Cover (%) 3 | . . . 3 Naked Turns . | . . . . Heaviest Build 219 | 14 36 215 219 Greatest Support 40 | 20 32 40 40 Greatest Overweight (x) 10 | . 2 10 10 Average Overweight (x) 4 | . . 3 5 Largest Inventory Capacity 36 | 8 16 36 36 Average Capacity 30 | 7 15 31 36 Most Carried 36 | 8 16 36 36 Average Carried 29 | 5 14 27 35 Final Capacity 36 | 8 16 36 36 Final Carried 36 | 8 16 36 36 Class Distribution -------------------- 76% | Hauler-Mutant 22% | Mutant Dominant Class ---------------- Mutant | -10/Materials Hauler-Mutant | -10/Subcaves Hauler-Mutant | -9/Scraptown Resources | -11 -10 -10 -9 ----------- Run | Yrd Mat Sub Scr Matter Collected 1386 | 280 463 523 120 Remotely . | . . . . Salvage Created 1056 | 204 483 239 130 Parts 54 | 20 16 13 5 Haulers Intercepted 2 | . 2 . . Recyclers Shooed . | . . . . Parts Field Recycled . | . . . . Retrieved Matter . | . . . . Parts Self-Destructed 29 | . . 29 . Prevented . | . . . . Parts Restored . | . . . . Kills | -11 -10 -10 -9 ------- Run | Yrd Mat Sub Scr Combat Hostiles Destroyed 18 | . 7 9 2 Melee 2 | . . . 2 Guns 6 | . 4 2 . Cannons 4 | . . 4 . AOE 4 | . 1 3 . Classes Destroyed 10 | 3 4 1 2 Worker 2 | 2 . . . Tunneler 5 | 5 . . . Hauler 2 | . 2 . . Recycler 2 | 1 1 . . Watcher 1 | . 1 . . Swarmer 3 | . 2 1 . Grunt 9 | . 5 4 . Subdweller 4 | . . 4 . Explorer 1 | . . . 1 Scrapper 1 | . . . 1 Best Kill Streak 4 | 4 3 4 1 Combat Bots Only 4 | . 2 4 1 Max Kills in Single Turn 2 | 1 1 2 1 Gunslinging . | . . . . Exploded 2 | . 1 2 . Melee 1 | . . . 1 Uniques/NPCs Destroyed . | . . . . Combat | -11 -10 -10 -9 -------- Run | Yrd Mat Sub Scr Hostile Shots Fired 116 | . 35 29 52 Missed 23 | . 9 6 8 Hits 93 | . 26 23 44 Melee 10 | . . . 10 Projectile 83 | . 26 23 34 Critical Strikes 14 | . 1 . 13 Damage Taken 1331 | . 342 354 635 Core 427 | . 154 101 172 Absorbed by Shields . | . . . . Regen/Repaired (Parts) 38 | . 38 . . Core Remaining (%) 100 | 100 . . . Volleys Fired 124 | 13 46 65 . Largest 2 | 2 2 2 . Hottest 136 | 80 136 136 . Shots Fired 203 | 26 87 90 . Gun 121 | 26 63 32 . Cannon 43 | . 22 21 . Launcher 6 | . . 6 . Special 33 | . 2 31 . Kinetic 43 | . . 43 . Thermal 85 | 13 31 41 . Explosive 6 | . . 6 . Electromagnetic 69 | 13 56 . . Robot Hit Streak 16 | 5 6 16 . Robot Miss Streak 7 | 2 7 2 . Penetration Max . | . . . . Secondary Targets 1 | . 1 . . Max Gunslinging Chain 1 | . 1 . . Shots Hit Robots 96 | 16 34 38 8 Core Hits 39 | 9 13 14 3 Critical Kills 1 | . . 1 . Critical Parts Destroyed . | . . . . Critical Strikes 3 | . . 1 2 Destroy 1 | . . 1 . Sever 2 | . . . 2 Melee Attacks 12 | . . . 12 Impact . | . . . . Slashing 12 | . . . 12 Piercing . | . . . . Sneak Attacks . | . . . . Combat Hostiles . | . . . . Follow-up Attacks . | . . . . Damage Inflicted 2012 | 208 599 1035 170 Guns 669 | 208 343 118 . Cannons 446 | . 185 261 . Explosions 319 | . 71 248 . Melee 170 | . . . 170 Ramming . | . . . . Kinetic 262 | . . 262 . Thermal 913 | 86 302 525 . Explosive 248 | . . 248 . Electromagnetic 419 | 122 297 . . Impact . | . . . . Slashing 170 | . . . 170 Piercing . | . . . . Highest Corruption 4 | . . 4 4 Average Corruption 4 | . . 4 4 Corruption Purged . | . . . . Corruption Blocked . | . . . . Effects 23 | . . 23 . Message Errors 4 | . . 4 . Matter Fused 5 | . . 5 . Heat Flow Errors 3 | . . 3 . Energy Discharges 6 | . . 6 . Data Loss (minor) 5 | . . 5 . Overload Shots . | . . . . Overflow Damage 1 | . 1 . . Projectiles 1 | . 1 . . Explosions . | . . . . Melee . | . . . . Knockbacks . | . . . . Impact . | . . . . Kinetic . | . . . . Secondary . | . . . . Self-Inflicted Damage 15 | . . 15 . Shots 1 | . . 1 . Rammed . | . . . . Targets Rammed . | . . . . Kicked . | . . . . Crushed . | . . . . Highest Temperature 662 | 72 662 234 . Average Temperature 189 | 25 225 98 . Received Heat Transfer 228 | . 99 81 48 Effects 35 | . 35 . . Shutdowns 8 | . 8 . . Energy Bleed 6 | . 6 . . Interference 2 | . 2 . . Short Circuit 2 | . 2 . . Damage (minor) 6 | . 6 . . Damage (major) 6 | . 6 . . Damage (core) 5 | . 5 . . Siege Activations . | . . . . Martial Activations . | . . . . Shielding Activations . | . . . . Robots Disrupted . | . . . . Combat Hostiles . | . . . . Robots Corrupted . | . . . . Combat Hostiles . | . . . . Parts Fried . | . . . . Impact Corruptions . | . . . . Robots Melted 2 | . 2 . . Combat Hostiles 2 | . 2 . . Parts Melted 2 | . 2 . . Heat Transferred 1757 | 200 533 1024 . Parts Sabotaged . | . . . . Parts Stolen . | . . . . Parts Stripped . | . . . . Power Chain Reactions 2 | . 2 . . Alert | -11 -10 -10 -9 ------- Run | Yrd Mat Sub Scr Maximum Alert Level . | . . . . Low Security (%) 100 | 100 100 . . Level 1 . | . . . . Level 2 . | . . . . Level 3 . | . . . . Level 4 . | . . . . Level 5 . | . . . . High Security . | . . . . Max Security . | . . . . Peak Influence 155 | 10 155 . . Initial . | . . . . Average 37 | 2 46 . . Influence Increases 535 | 40 350 145 . Destroy 0b10 Robot/C 240 | . 140 100 . Destroy 0b10 Robot/NC 60 | 40 20 . . Destroy Leader 46 | . 46 . . Successful Hack 17 | . 17 . . Select Force Hacks 30 | . 30 . . Disable Machine 30 | . 30 . . Destroy Structure 7 | . 7 . . Lose Combat Pursuer 105 | . 60 45 . Influence Decreases 535 | 40 195 295 5 Entered New Map 80 | . . 75 5 Time Decay 445 | 40 185 220 . Lost Part 10 | . 10 . . Squads Dispatched 2 | . 2 . . Investigation 2 | . 2 . . Extermination . | . . . . Reinforcement . | . . . . Assault . | . . . . Garrison . | . . . . Intercept . | . . . . Searches Triggered . | . . . . Construction Impeded . | . . . . Haulers Reinforced . | . . . . Active Scanning Responses . | . . . . Cargo Convoy Interrupts . | . . . . Stealth | -11 -10 -10 -9 --------- Run | Yrd Mat Sub Scr Distress Signals 1 | . 1 . . Communications Jammed . | . . . . Distress Signals . | . . . . Times Spotted 35 | . 15 16 4 Peak Tracking Total 5 | . 4 4 5 Tactical Retreats 4 | . 3 1 . Traps | -11 -10 -10 -9 ------- Run | Yrd Mat Sub Scr Traps Triggered . | . . . . Indirectly . | . . . . Trap Hack Attempts . | . . . . Triggered . | . . . . Disarmed . | . . . . Reprogrammed . | . . . . Reused . | . . . . Traps Extracted . | . . . . Installed . | . . . . Triggered . | . . . . Machines | -11 -10 -10 -9 ---------- Run | Yrd Mat Sub Scr Machines Disabled 4 | . 2 . 2 Max in Single Turn 1 | . 1 . . Machines Repaired . | . . . . Machines Dismantled . | . . . . Machines Sabotaged . | . . . . Overloaded Fab Kills . | . . . . Hacking | -11 -10 -10 -9 --------- Run | Yrd Mat Sub Scr Machines Accessed 8 | . 3 1 4 Terminals 1 | . 1 . . Fabricators . | . . . . Repair Stations 1 | . 1 . . Recycling Units 1 | . 1 . . Scanalyzers . | . . . . Garrison Access . | . . . . Total Hacks 52 | . 17 4 31 Successful 48 | . 13 4 31 Failed 4 | . 4 . . Catastrophic . | . . . . Database Lockouts . | . . . . Manual 24 | . 6 15 3 Terminals 3 | . 3 . . Fabricators . | . . . . Repair Stations 10 | . 10 . . Recycling Units 4 | . 4 . . Scanalyzers . | . . . . Garrison Access . | . . . . Terminal Hacks 35 | . . 4 31 Record 35 | . . 4 31 Fabricator Hacks . | . . . . Repair Station Hacks 9 | . 9 . . Scan Component 5 | . 5 . . Repair 4 | . 4 . . Recycling Unit Hacks 2 | . 2 . . Retrieve Matter 1 | . 1 . . Retrieve Components 1 | . 1 . . Scanalyzer . | . . . . Garrison Access Hacks . | . . . . Unauthorized Hacks 2 | . 2 . . Terminals 1 | . 1 . . Botnet 1 | . 1 . . Fabricators . | . . . . Repair Stations . | . . . . Recycling Units 1 | . 1 . . Tunnel 1 | . 1 . . Scanalyzers . | . . . . Garrison Access . | . . . . Data Cores Recovered . | . . . . Used . | . . . . Hacking Detections 1 | . 1 . . Full Trace Events 1 | . 1 . . Feedback Events . | . . . . Feedback Blocked . | . . . . Robot Schematics Acquired . | . . . . Robots Built . | . . . . Authchips . | . . . . Time . | . . . . Total Robot Build Rating . | . . . . Part Schematics Acquired . | . . . . Parts Built . | . . . . Authchips . | . . . . Time . | . . . . Total Part Build Rating . | . . . . Part Studies Acquired . | . . . . Parts Repaired 4 | . 4 . . Time 134 | . 134 . . Parts Recycled . | . . . . Recycled Matter . | . . . . Retrieved Matter 168 | . 168 . . Retrieved Components 10 | . 10 . . Parts Scanalyzed . | . . . . Part Schematics Acquired . | . . . . Parts Damaged . | . . . . Bothacking | -11 -10 -10 -9 ------------ Run | Yrd Mat Sub Scr Used RIF Installer . | . . . . Robots Hacked . | . . . . Non-combat . | . . . . Combat . | . . . . Robot Hacks Applied . | . . . . Relay Couplers Released . | . . . . Fabnet Peak Effective % . | . . . . Robots Rewired . | . . . . Allies Hacked . | . . . . Hacks Repelled . | . . . . Allies | -11 -10 -10 -9 -------- Run | Yrd Mat Sub Scr Total Allies 1 | . . . 1 Largest Group 1 | . . . 1 Highest-Rated Group 85 | . . . 85 Highest-Rated Ally 85 | . . . 85 Total Orders . | . . . . Ally Attacks 2 | . . . 2 Total Damage 65 | . . . 65 Kills 1 | . . . 1 Allies Corrupted . | . . . . Allies Melted . | . . . . X0-1V1 Amusement Gains 210 | . 105 10 95 Good Acts 18 | . 8 9 1 Bad Acts 9 | . . 8 1 Intel | -11 -10 -10 -9 ------- Run | Yrd Mat Sub Scr Active Infowar (turns) 347 | 90 257 . . Terrain 347 | 90 257 . . Robot Analysis Total . | . . . . Derelict Logs Recovered 5 | . . 1 4 Drone Launches . | . . . . Drone Recoveries . | . . . . Exploration | -11 -10 -10 -9 ------------- Run | Yrd Mat Sub Scr Turns Passed 5157 | 170 691 1617 2679 Spaces Moved 2792 | 127 291 872 1502 Core 7 | 7 . . . Treads . | . . . . Legs . | . . . . Wheels 2785 | 120 291 872 1502 Hover . | . . . . Flight . | . . . . Fastest Speed 50 | 50 80 105 160 Average Speed 150 | 78 100 148 166 Slowest Speed 210 | 80 130 210 210 Overloaded Moves . | . . . . Propulsion Burnouts . | . . . . Robots Hopped . | . . . . Potential Cave-ins 1 | . . 1 . Cave-ins Triggered . | . . . . Exploration Rate (%) 44 | 5 37 52 82 Regions Visited 3 Branch Regions 2 Pre-discovered Areas 5 | . 1 1 3 Known Exits Taken . | . . . . Unknown Exits Taken 3 | 1 1 1 . Scrap Searched 8 | . . 3 5 Spaces Dug 4 | . 2 . 2 Terrain Destroyed 43 | . 7 34 2 Melee 2 | . . . 2 Projectile 2 | . 2 . . AOE 39 | . 5 34 . Terrain Rammed . | . . . . Walls Destroyed . | . . . . Machines Disabled . | . . . . Actions | -11 -10 -10 -9 --------- Run | Yrd Mat Sub Scr Total 3493 | 172 601 1039 1681 Wait 249 | 4 213 21 11 Move 2789 | 126 290 871 1502 Hop . | . . . . Pick Up 135 | 17 23 43 52 Fast Attach 10 | 1 4 2 3 Attach 12 | 7 2 3 . Detach 1 | 1 . . . Swap 28 | . 8 15 5 Drop 92 | 3 15 15 59 Fire 124 | 13 46 65 . Melee 12 | . . . 12 Ram . | . . . . Kick . | . . . . Crush . | . . . . Escape Stasis . | . . . . Rewire 41 | . . 4 37 Trap . | . . . . Miscellaneous . | . . . . Route ------- -11/Scrapyard -10/Materials (discovered 2 exits: [*Min] / *Sub) -10/Subcaves (discovered 3 exits: [*Mat] / Rec / *Scr) -9/Scraptown (discovered 2 exits: *Fac x2) History --------- Turn | Location | Event 2 | -11/Scrapyard | Met Revision 17 3 | -11/Scrapyard | Discovered new exit (range 15) 171 | -11/Scrapyard | Entered Materials 172 | -10/Materials | Met a group of wandering Federalists 289 | -10/Materials | Repaired Corrupted Com. Wheel 303 | -10/Materials | Build established: Mutant 326 | -10/Materials | Repaired Corrupted Seismic Detector 353 | -10/Materials | Repaired Signal Interpreter 390 | -10/Materials | Repaired Broken EM Pulse Gun 416 | -10/Materials | Discovered new exit (range 9) 423 | -10/Materials | Prayed at D.C.S.S. Altar Unit 430 | -10/Materials | Inventory capacity permanently improved by X0-1V1 (+1; -100 max core) 536 | -10/Materials | X0-1V1 foreshadows a heat wave 574 | -10/Materials | X0-1V1 activates XOMVISION 658 | -10/Materials | Ambient heat levels rising (+10) 805 | -10/Materials | Core integrity fell below 50% 815 | -10/Materials | Discovered new exit (range 16) 815 | -10/Materials | Ambient heat levels rising (+10) 829 | -10/Materials | Core integrity fell below 20% 852 | -10/Materials | X0-1V1 rescued you from certain death 862 | -10/Materials | Entered Subcaves 863 | -10/Subcaves | Continued accompanying wandering Federalists (5) 863 | -10/Subcaves | Approached by a straggling Scientist 896 | -10/Subcaves | Shifting Twisted Machinery released Battle Cannon 1042 | -10/Subcaves | X0-1V1 sent hostile G-34 Mercenary (x4) 1136 | -10/Subcaves | Core integrity permanently improved by X0-1V1 (+200) 1414 | -10/Subcaves | Ambushed by Subdweller buried in earth 1509 | -10/Subcaves | Learned location of 1 exit from Materials 1515 | -10/Subcaves | Learned location of Zion (-6) 1515 | -10/Subcaves | Met a Zionite searching for "candidates" 1539 | -10/Subcaves | Build established: Hauler-Mutant 1555 | -10/Subcaves | Discovered new exit (range 17) 1571 | -10/Subcaves | X0-1V1 activates XOMVISION 1678 | -10/Subcaves | Shifting Twisted Machinery released Sub. Machine Gun 1719 | -10/Subcaves | Shifting Twisted Machinery released Sub. Power Source 2148 | -10/Subcaves | X0-1V1 sent hostile S-10 Pest (x3) 2258 | -10/Subcaves | A swath of the cavern ceiling suddenly collapsed 2368 | -10/Subcaves | Visited Clippyterm 2372 | -10/Subcaves | Identified exit to Recycling 2372 | -10/Subcaves | Learned Factory trap positions 2393 | -10/Subcaves | X0-1V1 sent hostile S-10 Pest (x3) 2400 | -10/Subcaves | X0-1V1 whisked you away to safety 2479 | -10/Subcaves | Entered Scraptown 2483 | -9/Scraptown | System corruption cleaned by C-Scrubber 3436 | -9/Scraptown | Discovered new exit (range 5) 3548 | -9/Scraptown | Scanned Subdweller tech in exchange for log data 3551 | -9/Scraptown | Learned location of 1 exit from Proximity Caves 3553 | -9/Scraptown | Learned Factory emergency access door positions 3554 | -9/Scraptown | Learned Research garrison access intel 3556 | -9/Scraptown | Learned Research stockpile data 3748 | -9/Scraptown | Visited Junk Repository 3846 | -9/Scraptown | Visited Awakened 3958 | -9/Scraptown | Visited UFD Registry 3958 | -9/Scraptown | Registered with UFD as "Megakit" 3993 | -9/Scraptown | Visited Abandonware Association 4030 | -9/Scraptown | Learned abandonware demo "REPAIR.EXE" 4030 | -9/Scraptown | Learned abandonware demo "REVENGE.EXE" 4073 | -9/Scraptown | Visited Chapter 10 4236 | -9/Scraptown | Visited Curators Association 4684 | -9/Scraptown | Visited Junk Repository 4820 | -9/Scraptown | Visited Scrapoid Pod Storage 4829 | -9/Scraptown | Found Scrapoid Pod 4863 | -9/Scraptown | Visited Scrap Suit Storage 4886 | -9/Scraptown | Found Scrap Suit 4892 | -9/Scraptown | Found Scrap Suit 4934 | -9/Scraptown | Visited Supply Room 4974 | -9/Scraptown | Visited LU-1G1's Boring Crew 5056 | -9/Scraptown | Visited Cartography Club 5101 | -9/Scraptown | Attacked by Scraptown defenders 5109 | -9/Scraptown | X0-1V1 upgraded hostiles (x1) 5110 | -9/Scraptown | Learned location of Extension (-5) 5110 | -9/Scraptown | Learned location of Testing (-2) 5110 | -9/Scraptown | Learned 16 Factory zone layouts 5110 | -9/Scraptown | Learned 20 Factory zone layouts 5110 | -9/Scraptown | Learned 20 Lower Caves zone layouts 5110 | -9/Scraptown | Learned 8 Upper Caves zone layouts 5110 | -9/Scraptown | Learned 16 Upper Caves zone layouts 5110 | -9/Scraptown | Learned 4 Hub_04(d) zone layouts 5110 | -9/Scraptown | Learned location of 1 exit from Factory 5110 | -9/Scraptown | Learned location of 2 exits from Lower Caves 5110 | -9/Scraptown | Learned location of 3 exits from Upper Caves 5110 | -9/Scraptown | Identified exit to Factory 5139 | -9/Scraptown | X0-1V1 sent allied B-75 Beast (x1) 5158 | -9/Scraptown | Destroyed by 5D-VI1(h) with Hypervelocity Coil Gun Last Messages --------------- 05143_ Penetrated by HV Slug. 05143_ HV Slug penetrates Earth. 05146_ Critical hit (Impale). 05146_ Penetrated by HV Slug. 05146_ Critical hit (Destroy). 05146_ Arm. Wheel destroyed. 05146_ HV Slug penetrates Earth. 05146_ Penetrated by HV Slug. 05146_ HV Slug penetrates Earth. 05147_ Earth collapses. 05148_ HM-9DY(x) destroyed. 05149_ Penetrated by HV Slug. 05149_ HV Slug penetrates Earth. 05152_ HV Slug penetrates Wall. 05152_ Penetrated by HV Slug. 05152_ HV Slug penetrates Wall. 05153_ Acquired 25 matter. 05155_ Penetrated by HV Slug. 05158_ X0-1V1 chortles! [Achievement: This Is Interesting...] Map ----- +----------------------------------------------------+ | | | | | ?????????????????????????????????????????????????? | | ?????????????????????????????????????????????????? | | ?????????????????????????????????????????????????? | | ############?????????????????????????????????????? | | "#"""""""""#?????????????????????????????????????? | | "#" "#?????????????????????????????????????? | | """ "#?????????????????????????????????????? | | "#" "" "#?????????????????????????????????????? | | "#" " "#?????????????????????????????????????? | | "#" "#?????????????????????????????????????? | | "#"" """"""#?????????????????????????????????????? | | #?????????????????????????????????????? | | #?????????????????????????????????????? | | #?????????????????????????????????????? | | "" """"#####?????????????????????????????????????? | | " "#?????????????????????????????????????????? | | " [ ""#?????????????????????????????????????????? | | " """#??????????????##?????????????????????????? | | " """#??????????????? ?????????????????????????? | | """""""#???????????????"####?#???????????????????? | | ########???????????????#%/=# #???????????????????? | | ???????????????????????#*#=# ##????###########???? | | ?????????????????????###=# #????# # # #???? | | ???????????????????#?#*!#@ # #??# # """ # #???? | | ???????????????????# # ##h#### ##??# # "#" # #???? | | ???????????????????# ;##????#???# # """ # ##### | | ???????????????????# ##"#X#????????# ##"" | | ???????????????????#### ###????????# ####### ##" | | ???????????????????# #????????# # # ##"** | | ???????????????????###### #######??# # # ##"** | | ???????????????????# #??# # # ##"" | | ???????????????????# #??# ##" | | ??????????? ???????######### ####??##### ######### | | ?????????## ###????????##### ########### ######### | | ?????? ????????#"""" """"""""""" """"""""" | | ???? #???????#" | | ??? #???????#" | | ???? #???????#" | | ????? #???????#" | | ?????# #???????#" | | ?????# #?????""" """""""""""""""""""" | | ?????# #?????""" """""""""""""""""""" | | ?????# #?????""" ""###### ########## | | ?????# #?????""" ""#???? ???????? | | ?????# #?????""" ""#??? ???????? | | ???# ###?#?""" "??????" ""???????? | | ""???# ""#"#??"" "??????? ????????? | | "" ??# """"#??"" ""????? ? " ##### | +----------------------------------------------------+ Best States ------------- Heat Dissipation 25 Energy Generation 14 Energy Capacity 1665 Matter Stores 919 Matter Capacity 1000 Sight Range 18 Terrain Scan Range 16 Terrain Scan Density 10 Evasion (%) 44 Item Schematics ----------------- None Robot Schematics ------------------ None Fabricated ------------ Nothing Repaired ---------- Com. Wheel | 80% | -10/Materials | Corrupted Seismic Detector | 99% | -10/Materials | Corrupted Signal Interpreter | 60% | -10/Materials EM Pulse Gun | 46% | -10/Materials | Broken Studied --------- None Alien Tech Used ----------------- None Achievements -------------- Do Not Disturb Packrat Strength In Numbers Tank This Is Interesting... Challenges ------------ None Game ------ Seed SmartConcussiveField Manual? 0 Play Time 01:13:40 Cumulative 79.6 hours Start 2026.08.11 @ 23:34:19 End 2026.08.12 @ 01:10:00 Sessions 2 Manual Loads 0 Difficulty Rogue Special Mode None Game No. 138 Rogue 138 Adventurer 0 Explorer 0 Win Type - Total 0 Types 0/0/0/0/0/0/0/0/0/0 Lore% 27 Gallery% 34 Achievement% 28 Wizard Run 0 Options --------- Layout 1 ASCII 0 Keyboard 0 Movement Mouse Keybinds 0 Fullscreen 1 Font 24/Smallcaps Map View 50x35 Zoom Use 0% Tactical HUD 1 Map Filters NONE Filters NONE Steam 1 RUN: 88a5f975-4bca-4a86-bccd-45678ae93c3f